[Event "FISU WUMSCC Women 2024"]
[Site "Entebbe"]
[Date "2024.06.29"]
[Round "8.1"]
[White "Kubicka, Anna"]
[Black "Aakanksha Hagawane"]
[Result "1/2-1/2"]
[ECO "C45"]
[WhiteElo "2334"]
[BlackElo "2149"]
[Annotator "RC"]
[PlyCount "119"]
[EventDate "2024.06.24"]
[EventType "swiss"]
[EventCountry "UGA"]
[SourceTitle "playchess.com"]
[Source "ChessBase"]
[SourceQuality "1"]
[TimeControl "5400+30"]

1. e4 {[%emt 0:00:08]} e5 {[%emt 0:00:07]} 2. Nf3 {[%emt 0:00:07]} Nc6 {[%emt 0:00:06]} 3. d4 {[%emt 0:00:09]} exd4 {[%emt 0:00:27]} 4. Nxd4 {[%emt 0:00:04]} Bc5 {[%emt 0:00:59]} 5. Be3 {[%emt 0:00:13]} Qf6 {[%emt 0:01:15]} 6. c3 {[%emt 0:00:09]} Nge7 {[%emt 0:02:43]} 7. Bc4 {[%emt 0:00:18]} d6 {[%emt 0:05:11]} 8. O-O {[%emt 0:00:18]} a6 {[%emt 0:04:03]} 9. Nxc6 {[%emt 0:04:07]} Nxc6 {[%emt 0:00:21]} 10. Bxc5 {[%emt 0:00:09]} dxc5 {[%emt 0:00:04]} 11. f4 {[%emt 0:02:12]} O-O {[%emt 0:02:48]} 12. Nd2 {[%emt 0:04:00]} Be6 {[%emt 0:04:50]} 13. Bd3 {[%emt 0:17:26]} Rad8 {[%emt 0:10:45]} 14. Bc2 {[%emt 0:03:16]} Qh6 {[%emt 0:12:30]} 15. Rf2 {[%emt 0:02:27]} b5 {[%emt 0:09:24]} 16. Qe1 {[%emt 0:05:27]} f5 {[%emt 0:06:28]} 17. e5 {[%emt 0:04:09]} Ne7 {[%emt 0:01:18]} 18. Qc1 {[%emt 0:25:24]} Bc8 {[%emt 0:06:40]} 19. Nf3 {[%emt 0:03:32]} Qc6 {[%emt 0:02:42]} 20. c4 {[%emt 0:03:01]} h6 {[%emt 0:05:11]} 21. Bb3 {[%emt 0:01:52]} b4 {[%emt 0:02:01]} 22. Qe3 {[%emt 0:00:57]} Be6 {[%emt 0:02:55]} 23. Rd2 {[%emt 0:06:56]} Rxd2 {[%emt 0:01:51]} 24. Nxd2 {[%emt 0:00:08]} Rd8 {[%emt 0:01:11]} 25. Bd1 {[%emt 0:00:58]} Qd7 {[%emt 0:03:12]} 26. Nb3 {[%emt 0:00:17]} Bxc4 {[%emt 0:00:26]} 27. Qxc5 {[%emt 0:04:29]} Qe6 {[%emt 0:01:31]} 28. Qxb4 {[%emt 0:04:24]} Qb6+ {[%emt 0:00:56]} 29. Qxb6 {[%emt 0:00:04]} cxb6 {[%emt 0:00:01]} 30. Bf3 {[%emt 0:01:28]} g5 {[%emt 0:02:03]} 31. fxg5 {[%emt 0:01:52]} hxg5 {[%emt 0:00:02]} 32. Rc1 {[%emt 0:00:39]} Bb5 {[%emt 0:02:17]} 33. Rd1 {[%emt 0:02:32]} Rxd1+ {[%emt 0:01:45]} 34. Bxd1 {[%emt 0:00:02]} Nc6 {[%emt 0:00:32]} 35. Bc2 {[%emt 0:01:40]} Nxe5 {[%emt 0:06:13]} 36. Bxf5 {[%emt 0:00:04]} Kf7 {[%emt 0:00:31]} 37. Nd4 {[%emt 0:00:37]} Bc4 {[%emt 0:00:12]} 38. b3 {[%emt 0:01:09]} Bd5 {[%emt 0:00:01]} 39. h3 {[%emt 0:00:34]} Kf6 {[%emt 0:00:16]} 40. Bc8 {[%emt 0:00:15]} a5 {[%emt 0:00:07]} 41. Ba6 {[%emt 0:00:23]} Ng6 {[%emt 0:01:28]} 42. Kf2 {[%emt 0:00:54]} Nf4 {[%emt 0:01:42]} 43. Nf3 {[%emt 0:00:14]} a4 {[%emt 0:01:17]} 44. bxa4 {[%emt 0:02:28]} Bxa2 {[%emt 0:00:02]} 45. Bb5 {[%emt 0:00:47]} Bd5 {[%emt 0:00:49]} 46. h4 {[%emt 0:00:33]} gxh4 {[%emt 0:00:33]} 47. Nxh4 {[%emt 0:00:02]} Ne6 {[%emt 0:00:34]} 48. Nf3 {[%emt 0:00:06]} Nc5 {[%emt 0:00:32]} 49. Nd2 {[%emt 0:00:19]} Kf5 {[%emt 0:00:36]} 50. g3 {[%emt 0:00:15]} Kg5 {[%emt 0:00:57]} 51. Be8 {[%emt 0:01:29]} Ne4+ {[%emt 0:00:40]} 52. Nxe4+ {[%emt 0:00:09]} Bxe4 {[%emt 0:00:01]} 53. Bd7 {[%emt 0:00:38]} Bc2 {[%emt 0:00:11]} 54. Ke2 {[%emt 0:00:56]} Bb3 {[%emt 0:00:09]} 55. Ke3 {[%emt 0:00:18]} Bc2 {[%emt 0:00:29]} 56. Bb5 {[%emt 0:00:20]} Bb3 {[%emt 0:00:35]} 57. Be8 {[%emt 0:00:40]} Bc2 {[%emt 0:00:12]} 58. Bd7 {[%emt 0:00:36]} Bb3 {[%emt 0:00:09]} 59. Kd4 {[%emt 0:00:41]} Bxa4 {[%emt 0:00:14]} 60. Bxa4 {[%emt 0:00:05]} 1/2-1/2

[Event "FISU WUMSCC Women 2024"]
[Site "Entebbe"]
[Date "2024.06.29"]
[Round "8.2"]
[White "Jarocka, Liwia"]
[Black "Salonika, Saina"]
[Result "1/2-1/2"]
[ECO "A69"]
[WhiteElo "2237"]
[BlackElo "2103"]
[Annotator "RC"]
[PlyCount "34"]
[EventDate "2024.06.24"]
[EventType "swiss"]
[EventCountry "UGA"]
[SourceTitle "playchess.com"]
[Source "ChessBase"]
[SourceQuality "1"]
[TimeControl "5400+30"]

1. d4 {[%emt 0:00:05]} Nf6 {[%emt 0:00:05]} 2. c4 {[%emt 0:00:06]} g6 {[%emt 0:00:07]} 3. Nc3 {[%emt 0:00:05]} Bg7 {[%emt 0:00:06]} 4. e4 {[%emt 0:01:00]} d6 {[%emt 0:00:04]} 5. f4 {[%emt 0:00:08]} O-O {[%emt 0:00:06]} 6. Nf3 {[%emt 0:00:07]} c5 {[%emt 0:00:35]} 7. d5 {[%emt 0:00:12]} e6 {[%emt 0:00:30]} 8. Be2 {[%emt 0:00:10]} exd5 {[%emt 0:00:21]} 9. cxd5 {[%emt 0:00:05]} Re8 {[%emt 0:01:07]} 10. e5 {[%emt 0:00:35]} dxe5 {[%emt 0:02:23]} 11. fxe5 {[%emt 0:00:31]} Ng4 {[%emt 0:01:10]} 12. e6 {[%emt 0:00:15]} fxe6 {[%emt 0:01:44]} 13. Bg5 {[%emt 0:00:44]} Qb6 {[%emt 0:04:24]} 14. Qd2 {[%emt 0:00:36]} Na6 {[%emt 0:26:23]} 15. h3 {[%emt 0:15:42]} Nf6 {[%emt 0:08:10]} 16. d6 {[%emt 0:01:52]} Nd5 {[%emt 0:01:16]} 17. Ne4 {[%emt 0:07:35]} Bd7 {[%emt 0:05:29]} 1/2-1/2

[Event "FISU WUMSCC Women 2024"]
[Site "Entebbe"]
[Date "2024.06.29"]
[Round "8.3"]
[White "Sliwicka, Alicja"]
[Black "Wijesuriya, G P Y"]
[Result "1-0"]
[ECO "C84"]
[WhiteElo "2375"]
[BlackElo "1833"]
[Annotator "RC"]
[PlyCount "125"]
[EventDate "2024.06.24"]
[EventType "swiss"]
[EventCountry "UGA"]
[SourceTitle "playchess.com"]
[Source "ChessBase"]
[SourceQuality "1"]
[TimeControl "5400+30"]

1. e4 {[%emt 0:00:04]} e5 {[%emt 0:00:40]} 2. Nf3 {[%emt 0:00:12]} Nc6 {[%emt 0:00:21]} 3. Bb5 {[%emt 0:00:06]} a6 {[%emt 0:00:07]} 4. Ba4 {[%emt 0:00:05]} Nf6 {[%emt 0:00:08]} 5. Nc3 {[%emt 0:00:07]} b5 {[%emt 0:00:37]} 6. Bb3 {[%emt 0:00:08]} Be7 {[%emt 0:00:05]} 7. d3 {[%emt 0:00:23]} O-O {[%emt 0:00:10]} 8. O-O {[%emt 0:00:09]} d6 {[%emt 0:00:16]} 9. a3 {[%emt 0:00:24]} Bg4 {[%emt 0:00:30]} 10. Be3 {[%emt 0:01:12]} Qd7 {[%emt 0:22:05]} 11. h3 {[%emt 0:04:00]} Bh5 {[%emt 0:01:30]} 12. Nd5 {[%emt 0:01:10]} Rab8 {[%emt 0:03:41]} 13. Nxe5 {[%emt 0:05:07]} dxe5 {[%emt 0:10:17]} 14. Nxf6+ {[%emt 0:00:19]} Bxf6 {[%emt 0:00:10]} 15. Qxh5 {[%emt 0:00:07]} Nd4 {[%emt 0:00:41]} 16. Bxd4 {[%emt 0:04:05]} Qxd4 {[%emt 0:00:57]} 17. Rab1 {[%emt 0:00:49]} a5 {[%emt 0:07:49]} 18. Rfe1 {[%emt 0:01:09]} g6 {[%emt 0:05:16]} 19. Qe2 {[%emt 0:04:22]} Qd6 {[%emt 0:01:54]} 20. g3 {[%emt 0:01:17]} a4 {[%emt 0:06:20]} 21. Ba2 {[%emt 0:01:57]} b4 {[%emt 0:01:11]} 22. axb4 {[%emt 0:00:09]} Rxb4 {[%emt 0:00:19]} 23. Bc4 {[%emt 0:01:36]} Rfb8 {[%emt 0:03:16]} 24. b3 {[%emt 0:05:01]} axb3 {[%emt 0:06:20]} 25. Bxb3 {[%emt 0:00:16]} Ra8 {[%emt 0:02:33]} 26. Kg2 {[%emt 0:00:39]} Rb6 {[%emt 0:05:26]} 27. Rf1 {[%emt 0:00:22]} Bg5 {[%emt 0:03:12]} 28. h4 {[%emt 0:06:34]} Bh6 {[%emt 0:01:26]} 29. Qg4 {[%emt 0:03:24]} Qc5 {[%emt 0:13:57]} 30. Qd7 {[%emt 0:06:03]} Rf8 {[%emt 0:00:26]} 31. Ra1 {[%emt 0:00:26]} Qd6 {[%emt 0:00:49]} 32. Qxd6 {[%emt 0:03:14]} cxd6 {[%emt 0:00:27]} 33. Ra7 {[%emt 0:00:11]} Bd2 {[%emt 0:01:52]} 34. Rfa1 {[%emt 0:00:15]} Bc3 {[%emt 0:00:14]} 35. R1a4 {[%emt 0:00:33]} Bd4 {[%emt 0:01:06]} 36. Rd7 {[%emt 0:00:28]} Bc5 {[%emt 0:00:18]} 37. Bd5 {[%emt 0:00:55]} Rbb8 {[%emt 0:00:24]} 38. c3 {[%emt 0:01:36]} Rb2 {[%emt 0:00:53]} 39. d4 {[%emt 0:00:18]} exd4 {[%emt 0:00:05]} 40. cxd4 {[%emt 0:00:03]} Rb4 {[%emt 0:00:05]} 41. Rxb4 {[%emt 0:10:16]} Bxb4 {[%emt 0:00:02]} 42. Kf3 {[%emt 0:00:23]} h6 {[%emt 0:01:44]} 43. g4 {[%emt 0:01:09]} g5 {[%emt 0:00:11]} 44. h5 {[%emt 0:00:26]} Kg7 {[%emt 0:00:18]} 45. Ke3 {[%emt 0:00:28]} Ba3 {[%emt 0:01:11]} 46. Kd3 {[%emt 0:00:52]} Bb4 {[%emt 0:00:49]} 47. f3 {[%emt 0:00:13]} Ba3 {[%emt 0:00:45]} 48. Kc3 {[%emt 0:01:11]} Kh8 {[%emt 0:00:55]} 49. Kb3 {[%emt 0:01:15]} Bc1 {[%emt 0:00:40]} 50. Bxf7 {[%emt 0:01:35]} Be3 {[%emt 0:00:28]} 51. Kc4 {[%emt 0:00:25]} Rc8+ {[%emt 0:00:33]} 52. Kd5 {[%emt 0:01:43]} Bf4 {[%emt 0:00:13]} 53. Ke6 {[%emt 0:00:37]} Be3 {[%emt 0:00:07]} 54. Rxd6 {[%emt 0:00:36]} Rc7 {[%emt 0:00:09]} 55. Bg6 {[%emt 0:00:38]} Kg7 {[%emt 0:00:17]} 56. e5 {[%emt 0:00:40]} Rc4 {[%emt 0:00:21]} 57. d5 {[%emt 0:01:21]} Rf4 {[%emt 0:00:10]} 58. Rd7+ {[%emt 0:00:24]} Kg8 {[%emt 0:00:15]} 59. Bf5 {[%emt 0:00:22]} Rxf3 {[%emt 0:00:17]} 60. Kf6 {[%emt 0:00:23]} Bc5 {[%emt 0:00:22]} 61. Rd8+ {[%emt 0:01:06]} Bf8 {[%emt 0:00:07]} 62. e6 {[%emt 0:00:23]} Re3 {[%emt 0:01:25]} 63. d6 {[%emt 0:00:27]} 1-0

[Event "FISU WUMSCC Women 2024"]
[Site "Entebbe"]
[Date "2024.06.29"]
[Round "8.4"]
[White "Koubova, Anna Marie"]
[Black "Antolak, Julia"]
[Result "0-1"]
[ECO "C68"]
[WhiteElo "2125"]
[BlackElo "2306"]
[Annotator "RC"]
[PlyCount "78"]
[EventDate "2024.06.24"]
[EventType "swiss"]
[EventCountry "UGA"]
[SourceTitle "playchess.com"]
[Source "ChessBase"]
[SourceQuality "1"]
[TimeControl "5400+30"]

1. e4 {[%emt 0:00:05]} e5 {[%emt 0:01:41]} 2. Nf3 {[%emt 0:08:59]} Nc6 {[%emt 0:00:06]} 3. Bb5 {[%emt 0:00:05]} a6 {[%emt 0:00:06]} 4. Bxc6 {[%emt 0:00:19]} dxc6 {[%emt 0:00:08]} 5. O-O {[%emt 0:00:14]} Bg4 {[%emt 0:00:36]} 6. h3 {[%emt 0:00:56]} h5 {[%emt 0:01:33]} 7. d3 {[%emt 0:00:39]} Qf6 {[%emt 0:01:16]} 8. Be3 {[%emt 0:02:59]} Bxf3 {[%emt 0:07:14]} 9. Qxf3 {[%emt 0:00:26]} Qxf3 {[%emt 0:00:06]} 10. gxf3 {[%emt 0:00:07]} Bd6 {[%emt 0:00:05]} 11. Nc3 {[%emt 0:04:31]} Ne7 {[%emt 0:00:49]} 12. Ne2 {[%emt 0:01:20]} Ng6 {[%emt 0:03:40]} 13. Kh1 {[%emt 0:08:16]} f6 {[%emt 0:05:10]} 14. Rad1 {[%emt 0:02:22]} c5 {[%emt 0:05:24]} 15. Rg1 {[%emt 0:03:35]} Kf7 {[%emt 0:00:20]} 16. Rg3 {[%emt 0:02:16]} Nf4 {[%emt 0:10:43]} 17. Bxf4 {[%emt 0:14:16]} exf4 {[%emt 0:00:06]} 18. Rg2 {[%emt 0:00:04]} Be5 {[%emt 0:01:26]} 19. c3 {[%emt 0:11:03]} Rad8 {[%emt 0:02:55]} 20. d4 {[%emt 0:04:56]} cxd4 {[%emt 0:02:07]} 21. cxd4 {[%emt 0:00:08]} c5 {[%emt 0:01:08]} 22. Rdg1 {[%emt 0:01:29]} cxd4 {[%emt 0:04:24]} 23. Rxg7+ {[%emt 0:00:21]} Ke6 {[%emt 0:05:35]} 24. Rxb7 {[%emt 0:05:50]} Rb8 {[%emt 0:03:52]} 25. Rxb8 {[%emt 0:05:26]} Rxb8 {[%emt 0:00:07]} 26. Rb1 {[%emt 0:00:50]} d3 {[%emt 0:14:53]} 27. Nc1 {[%emt 0:00:10]} d2 {[%emt 0:03:09]} 28. Nb3 {[%emt 0:01:59]} Rxb3 {[%emt 0:02:43]} 29. axb3 {[%emt 0:00:06]} Bxb2 {[%emt 0:00:03]} 30. Rd1 {[%emt 0:00:09]} Bc1 {[%emt 0:00:04]} 31. Kg1 {[%emt 0:00:54]} Ke5 {[%emt 0:00:26]} 32. Kf1 {[%emt 0:00:07]} Kd4 {[%emt 0:00:04]} 33. Ke2 {[%emt 0:00:07]} Kc3 {[%emt 0:00:01]} 34. Rg1 {[%emt 0:10:29]} Kc2 {[%emt 0:02:00]} 35. Rf1 {[%emt 0:00:21]} a5 {[%emt 0:01:02]} 36. Rg1 {[%emt 0:00:33]} Bb2 {[%emt 0:23:28]} 37. Rd1 {[%emt 0:01:07]} Bc3 {[%emt 0:00:00]} 38. Rg1 {[%emt 0:01:58]} Kxb3 {[%emt 0:00:00]} 39. Kd3 {[%emt 0:01:10]} Kb2 {[%emt 0:01:30]} 0-1

[Event "FISU WUMSCC Women 2024"]
[Site "Entebbe"]
[Date "2024.06.29"]
[Round "8.5"]
[White "Tharushi, T H D Niklesha"]
[Black "Walter, Ema"]
[Result "1-0"]
[ECO "D55"]
[WhiteElo "1810"]
[BlackElo "2099"]
[Annotator "RC"]
[PlyCount "85"]
[EventDate "2024.06.24"]
[EventType "swiss"]
[EventCountry "UGA"]
[SourceTitle "playchess.com"]
[Source "ChessBase"]
[SourceQuality "1"]
[TimeControl "5400+30"]

1. d4 {[%emt 0:00:03]} Nf6 {[%emt 0:00:08]} 2. c4 {[%emt 0:00:03]} e6 {[%emt 0:00:05]} 3. Nf3 {[%emt 0:00:03]} d5 {[%emt 0:00:05]} 4. Nc3 {[%emt 0:00:04]} Be7 {[%emt 0:00:05]} 5. Bg5 {[%emt 0:00:07]} h6 {[%emt 0:00:06]} 6. Bxf6 {[%emt 0:00:04]} Bxf6 {[%emt 0:00:04]} 7. e3 {[%emt 0:00:05]} O-O {[%emt 0:00:10]} 8. Rc1 {[%emt 0:00:03]} c6 {[%emt 0:03:22]} 9. h4 {[%emt 0:00:16]} Nd7 {[%emt 0:03:22]} 10. g4 {[%emt 0:00:18]} e5 {[%emt 0:16:05]} 11. g5 {[%emt 0:25:08]} exd4 {[%emt 0:00:24]} 12. gxf6 {[%emt 0:01:06]} dxc3 {[%emt 0:00:06]} 13. fxg7 {[%emt 0:00:44]} Re8 {[%emt 0:00:07]} 14. bxc3 {[%emt 0:15:56]} Nf6 {[%emt 0:01:57]} 15. cxd5 {[%emt 0:09:20]} Bg4 {[%emt 0:15:29]} 16. Be2 {[%emt 0:00:56]} Nxd5 {[%emt 0:01:46]} 17. Qd4 {[%emt 0:10:06]} h5 {[%emt 0:17:55]} 18. c4 {[%emt 0:13:37]} Bxf3 {[%emt 0:20:51]} 19. Bxf3 {[%emt 0:00:05]} Nb4 {[%emt 0:00:03]} 20. Qxd8 {[%emt 0:04:10]} Rexd8 {[%emt 0:00:05]} 21. Rb1 {[%emt 0:01:13]} Nd3+ {[%emt 0:04:52]} 22. Ke2 {[%emt 0:00:48]} Nc5 {[%emt 0:00:13]} 23. Bxh5 {[%emt 0:01:19]} Kxg7 {[%emt 0:00:53]} 24. Bf3 {[%emt 0:01:32]} Rd6 {[%emt 0:01:55]} 25. Rhg1+ {[%emt 0:01:16]} Kf6 {[%emt 0:00:07]} 26. Rbd1 {[%emt 0:03:44]} Rad8 {[%emt 0:00:07]} 27. Rxd6+ {[%emt 0:02:27]} Rxd6 {[%emt 0:00:01]} 28. h5 {[%emt 0:00:21]} Rd8 {[%emt 0:00:10]} 29. e4 {[%emt 0:02:09]} a5 {[%emt 0:00:32]} 30. Rg4 {[%emt 0:02:02]} Ne6 {[%emt 0:01:15]} 31. Ke3 {[%emt 0:00:38]} a4 {[%emt 0:01:37]} 32. Be2 {[%emt 0:00:33]} Rb8 {[%emt 0:05:35]} 33. f4 {[%emt 0:01:32]} b5 {[%emt 0:00:04]} 34. e5+ {[%emt 0:02:01]} Ke7 {[%emt 0:00:03]} 35. cxb5 {[%emt 0:00:07]} cxb5 {[%emt 0:00:04]} 36. h6 {[%emt 0:00:32]} Nf8 {[%emt 0:04:58]} 37. Bd3 {[%emt 0:01:09]} b4 {[%emt 0:02:54]} 38. h7 {[%emt 0:00:42]} Ng6 {[%emt 0:01:13]} 39. Bxg6 {[%emt 0:00:06]} fxg6 {[%emt 0:00:06]} 40. Rxg6 {[%emt 0:00:02]} Kf7 {[%emt 0:00:46]} 41. Rg8 {[%emt 0:00:22]} Rxg8 {[%emt 0:00:07]} 42. hxg8=Q+ {[%emt 0:00:05]} Kxg8 {[%emt 0:00:03]} 43. Kd4 {[%emt 0:00:10]} 1-0

[Event "FISU WUMSCC Women 2024"]
[Site "Entebbe"]
[Date "2024.06.29"]
[Round "8.6"]
[White "Kanakova, Natalie"]
[Black "Mohammed Ameen, Jwan Jamal M.A."]
[Result "1-0"]
[ECO "B18"]
[WhiteElo "2167"]
[BlackElo "1885"]
[Annotator "RC"]
[PlyCount "47"]
[EventDate "2024.06.24"]
[EventType "swiss"]
[EventCountry "UGA"]
[SourceTitle "playchess.com"]
[Source "ChessBase"]
[SourceQuality "1"]
[TimeControl "5400+30"]

1. e4 {[%emt 0:00:03]} c6 {[%emt 0:00:03]} 2. d4 {[%emt 0:00:10]} d5 {[%emt 0:00:04]} 3. Nc3 {[%emt 0:00:28]} dxe4 {[%emt 0:00:07]} 4. Nxe4 {[%emt 0:00:05]} Bf5 {[%emt 0:00:39]} 5. Ng3 {[%emt 0:00:05]} Bg6 {[%emt 0:00:23]} 6. h4 {[%emt 0:00:33]} h5 {[%emt 0:01:25]} 7. Nf3 {[%emt 0:01:53]} e6 {[%emt 0:00:12]} 8. Ne5 {[%emt 0:02:02]} Nf6 {[%emt 0:07:38]} 9. Nxg6 {[%emt 0:00:59]} fxg6 {[%emt 0:00:17]} 10. Bd3 {[%emt 0:05:06]} Qd5 {[%emt 0:01:39]} 11. Bxg6+ {[%emt 0:00:53]} Kd8 {[%emt 0:01:00]} 12. Bg5 {[%emt 0:02:02]} Bd6 {[%emt 0:00:34]} 13. Ne4 {[%emt 0:03:03]} Nbd7 {[%emt 0:00:41]} 14. O-O {[%emt 0:01:54]} Kc7 {[%emt 0:00:30]} 15. Qd3 {[%emt 0:04:00]} Nf8 {[%emt 0:02:00]} 16. c4 {[%emt 0:01:37]} Qa5 {[%emt 0:01:45]} 17. Nxd6 {[%emt 0:00:40]} Kxd6 {[%emt 0:01:32]} 18. b4 {[%emt 0:00:56]} Qd8 {[%emt 0:03:36]} 19. d5 {[%emt 0:01:47]} exd5 {[%emt 0:01:09]} 20. cxd5 {[%emt 0:02:12]} Kc7 {[%emt 0:00:37]} 21. Bf4+ {[%emt 0:00:20]} Kc8 {[%emt 0:00:35]} 22. Bf5+ {[%emt 0:00:12]} N8d7 {[%emt 0:00:50]} 23. dxc6 {[%emt 0:00:13]} bxc6 {[%emt 0:00:36]} 24. Qa6# {[%emt 0:00:08]} 1-0

[Event "FISU WUMSCC Women 2024"]
[Site "Entebbe"]
[Date "2024.06.29"]
[Round "8.7"]
[White "Mahajan Mokshada D"]
[Black "Blanquet, Camille"]
[Result "0-1"]
[ECO "B13"]
[WhiteElo "1504"]
[BlackElo "2074"]
[Annotator "NA RC"]
[PlyCount "58"]
[EventDate "2024.06.24"]
[EventType "swiss"]
[EventCountry "UGA"]
[SourceTitle "playchess.com"]
[Source "ChessBase"]
[SourceQuality "1"]
[TimeControl "5400+30"]

1. e4 {[%emt 0:00:07]} c6 {[%emt 0:00:06]} 2. d4 {[%emt 0:00:03]} d5 {[%emt 0:00:07]} 3. exd5 {[%emt 0:00:27]} cxd5 {[%emt 0:00:07]} 4. Bd3 {[%emt 0:00:17]} Nc6 {[%emt 0:00:34]} 5. c3 {[%emt 0:00:05]} Nf6 {[%emt 0:00:47]} 6. Bf4 {[%emt 0:00:32]} Bg4 {[%emt 0:06:05]} 7. Qb3 {[%emt 0:01:35]} Qd7 {[%emt 0:02:09]} 8. Nd2 {[%emt 0:00:36]} e6 {[%emt 0:16:55]} 9. Ngf3 {[%emt 0:00:17]} a6 {[%emt 0:01:27]} 10. O-O {[%emt 0:00:47]} Be7 {[%emt 0:05:10] B13: Caro-Kann: Exchange Variation and Panov-Botvinnik Attack.} 11. Rae1 {[%emt 0:01:08]} O-O {[%emt 0:02:33]} 12. h3 {[%emt 0:01:18]} Bh5 {[%emt 0:01:44]} 13. Qc2 {[%emt 0:02:01]} Rac8 {[%emt 0:02:17]} 14. Qb1 {[%emt 0:01:54]} Qd8 {[%emt 0:02:53]} 15. Ne5 {[%emt 0:07:44]} Bg6 {[%emt 0:01:55]} 16. Nxg6 {[%emt 0:05:44]} hxg6 {[%emt 0:00:06] [#]} 17. Bxg6 $2 {[%emt 0:04:13]} fxg6 {[%emt 0:01:36]} 18. Qxg6 {[%emt 0:00:33]} Qe8 {[%emt 0:01:26]} ({Better is} 18... Bd6 19. Bg3 Qd7) 19. Qxe8 {[%emt 0:02:18]} Nxe8 {[%emt 0:03:24]} 20. g3 {[%emt 0:01:28]} Rf6 $17 {[%emt 0:09:29]} 21. Kg2 {[%emt 0:06:17]} Nd6 {[%emt 0:03:13]} 22. Be5 {[%emt 0:01:46]} Rg6 {[%emt 0:01:11]} 23. f4 {[%emt 0:01:02]} Nxe5 {[%emt 0:04:00]} 24. dxe5 {[%emt 0:07:15]} Nf5 {[%emt 0:03:05]} 25. g4 {[%emt 0:00:23]} Bh4 {[%emt 0:01:28]} 26. Kf3 {[%emt 0:05:50]} Bxe1 {[%emt 0:01:46]} 27. gxf5 {[%emt 0:04:14]} Rg3+ {[%emt 0:00:41]} 28. Ke2 {[%emt 0:00:23]} Bxd2 {[%emt 0:00:30]} 29. Kxd2 {[%emt 0:00:07]} exf5 {[%emt 0:00:07]} 0-1

[Event "FISU WUMSCC Women 2024"]
[Site "Entebbe"]
[Date "2024.06.29"]
[Round "8.8"]
[White "Djidjeli, Sarah"]
[Black "Bonno Thandi"]
[Result "1-0"]
[ECO "B07"]
[WhiteElo "2043"]
[BlackElo "1573"]
[Annotator "NA RC"]
[PlyCount "47"]
[EventDate "2024.06.24"]
[EventType "swiss"]
[EventCountry "UGA"]
[SourceTitle "playchess.com"]
[Source "ChessBase"]
[SourceQuality "1"]
[TimeControl "5400+30"]

1. e4 {[%emt 0:00:02]} d6 {[%emt 0:01:44]} 2. d4 {[%emt 0:00:10]} Nf6 {[%emt 0:00:06]} 3. Nc3 {[%emt 0:00:05]} c6 {[%emt 0:00:04]} 4. f4 {[%emt 0:02:57]} Qa5 {[%emt 0:00:34]} 5. Bd3 {[%emt 0:00:23]} e5 {[%emt 0:00:10]} 6. Nf3 {[%emt 0:04:51]} Nbd7 {[%emt 0:02:16]} 7. Qe2 {[%emt 0:06:44]} Be7 {[%emt 0:04:41]} 8. Bd2 {[%emt 0:08:36]} Qc7 {[%emt 0:00:11]} 9. a4 {[%emt 0:11:22]} (9. g4 $14) 9... b6 {[%emt 0:12:55]} 10. O-O {[%emt 0:02:35]} Bb7 {[%emt 0:02:17]} 11. Kh1 {[%emt 0:05:12]} O-O {[%emt 0:01:35]} 12. fxe5 {[%emt 0:13:28]} dxe5 {[%emt 0:02:52]} 13. Nxe5 {[%emt 0:00:58]} Nxe5 {[%emt 0:01:12]} 14. dxe5 $14 {[%emt 0:00:04]} Qxe5 {[%emt 0:04:04]} 15. Rf5 {[%emt 0:01:33]} Qd4 {[%emt 0:06:43]} 16. e5 {[%emt 0:03:34]} Nd5 {[%emt 0:03:27]} 17. Nxd5 {[%emt 0:03:30]} Qxd5 {[%emt 0:05:44]} 18. e6 {[%emt 0:00:24]} Qd8 {[%emt 0:02:57]} 19. exf7+ {[%emt 0:00:16]} Kh8 {[%emt 0:01:15]} 20. Rh5 {[%emt 0:00:08]} h6 {[%emt 0:08:12]} 21. Qe4 {[%emt 0:00:19]} Qxd3 {[%emt 0:03:48]} 22. Qxd3 {[%emt 0:00:07]} Rad8 {[%emt 0:01:15]} 23. Rxh6+ {[%emt 0:00:20]} gxh6 {[%emt 0:00:18]} 24. Bc3+ {[%emt 0:00:03]} 1-0